[Event "Asian Amateur-ch Open 2022"]
[Site "Muscat"]
[Date "2022.10.02"]
[Round "4.27"]
[White "Shaurya Dinesh Sawlani"]
[Black "Al Hosni, Khalfan"]
[Result "1-0"]
[ECO "B52"]
[WhiteElo "1448"]
[BlackElo "1680"]
[Annotator "NA RC COMBH"]
[PlyCount "91"]
[EventDate "2022.09.29"]
[EventType "swiss"]
[SourceTitle "playchess.com"]
[Source "ChessBase"]
[SourceQuality "1"]
[TimeControl "5400+30"]

1. e4 {[%emt 0:00:04]} c5 {[%emt 0:05:44]} 2. Nf3 {[%emt 0:00:38]} d6 {[%emt 0:00:16]} 3. Bb5+ {[%emt 0:00:10]} Bd7 {[%emt 0:00:02]} 4. Bxd7+ {[%emt 0:00:16]} Qxd7 {[%emt 0:00:02]} 5. O-O {[%emt 0:00:36]} g6 {[%emt 0:00:38]} 6. d4 {[%emt 0:01:36]} cxd4 {[%emt 0:01:12]} 7. Nxd4 {[%emt 0:00:30]} Bg7 {[%emt 0:00:23]} 8. Be3 {[%emt 0:01:13]} Nf6 {[%emt 0:00:53]} 9. f3 {[%emt 0:01:14]} O-O {[%emt 0:00:38]} 10. c3 {[%emt 0:04:24]} Nc6 {[%emt 0:01:02]} 11. Nd2 {[%emt 0:02:16]} Ne5 {[%emt 0:00:52]} 12. Qe2 {[%emt 0:04:09]} a6 {[%emt 0:03:09]} 13. a4 {[%emt 0:02:00]} Rac8 {[%emt 0:02:00]} 14. Kh1 {[%emt 0:16:29]} h5 {[%emt 0:03:00]} 15. Bg5 {[%emt 0:08:59]} Nh7 {[%emt 0:03:30]} 16. Bf4 {[%emt 0:05:31]} Nc6 {[%emt 0:01:57]} 17. Nxc6 {[%emt 0:07:48]} Qxc6 {[%emt 0:01:29]} 18. Qe3 {[%emt 0:00:42]} Rfd8 {[%emt 0:02:25]} 19. Bh6 {[%emt 0:02:17]} Nf6 {[%emt 0:02:11]} 20. Bxg7 {[%emt 0:03:05]} Kxg7 {[%emt 0:00:02]} 21. f4 {[%emt 0:04:23]} Ng4 {[%emt 0:01:30]} 22. Qg3 {[%emt 0:00:16]} Qb6 {[%emt 0:03:52]} 23. Rab1 {[%emt 0:07:20]} Rc6 {[%emt 0:06:28]} 24. f5 {[%emt 0:01:22]} Qa5 {[%emt 0:01:40]} 25. fxg6 {[%emt 0:01:43]} fxg6 {[%emt 0:02:35]} 26. Nb3 {[%emt 0:01:01]} Qe5 {[%emt 0:08:53]} 27. Nd4 {[%emt 0:00:31]} Qxg3 {[%emt 0:12:54]} 28. hxg3 {[%emt 0:00:04]} Rdc8 {[%emt 0:00:50]} 29. Nxc6 {[%emt 0:01:10]} Rxc6 {[%emt 0:00:18]} 30. Rf4 {[%emt 0:02:58]} Rc4 {[%emt 0:01:04]} 31. Rbf1 {[%emt 0:01:17]} Ne5 {[%emt 0:02:02]} 32. Rf8 {[%emt 0:07:10]} Rxe4 {[%emt 0:03:16]} 33. Rb8 {[%emt 0:00:56]} Nd7 {[%emt 0:02:39]} 34. Rxb7 {[%emt 0:00:43]} Nc5 {[%emt 0:00:12]} 35. Rb4 {[%emt 0:03:10]} Re2 {[%emt 0:02:23]} 36. a5 {[%emt 0:01:54]} Ne4 {[%emt 0:00:29]} 37. Kh2 {[%emt 0:04:11]} Nf2 {[%emt 0:02:55]} 38. Rxf2 {[%emt 0:00:47]} Rxf2 {[%emt 0:00:06]} 39. Rb6 {[%emt 0:00:05]} Kf7 {[%emt 0:01:55]} 40. b4 {[%emt 0:00:40]} Rc2 {[%emt 0:00:10]} 41. Rxa6 {[%emt 0:00:12]} Rxc3 {[%emt 0:00:06]} 42. b5 {[%emt 0:00:03]} d5 {[%emt 0:00:46]} 43. Rc6 {[%emt 0:01:43]} d4 {[%emt 0:00:09]} 44. a6 {[%emt 0:01:04]} Rb3 {[%emt 0:01:42]} 45. a7 {[%emt 0:00:26]} Ra3 {[%emt 0:00:44]} 46. Ra6 {[%emt 0:00:06]} 1-0

[Event "Asian Amateur-ch Open 2022"]
[Site "Muscat"]
[Date "2022.10.02"]
[Round "4.28"]
[White "Alhassan, Meshari"]
[Black "Al Amari, Mohammed"]
[Result "0-1"]
[ECO "D04"]
[WhiteElo "1372"]
[BlackElo "1646"]
[Annotator "NA RC COMBH"]
[PlyCount "66"]
[EventDate "2022.09.29"]
[EventType "swiss"]
[SourceTitle "playchess.com"]
[Source "ChessBase"]
[SourceQuality "1"]
[TimeControl "5400+30"]

1. d4 {[%emt 0:00:02]} d5 {[%emt 0:10:16]} 2. e3 {[%emt 0:01:03]} Nf6 {[%emt 0:00:44]} 3. Bd3 {[%emt 0:00:30]} Bg4 {[%emt 0:00:46]} 4. Nf3 {[%emt 0:02:16]} e6 {[%emt 0:00:10]} 5. Nbd2 {[%emt 0:00:25]} c5 {[%emt 0:00:27]} 6. c3 {[%emt 0:00:02]} cxd4 {[%emt 0:00:26]} 7. cxd4 {[%emt 0:00:02]} Nc6 {[%emt 0:00:25]} 8. O-O {[%emt 0:01:46]} Bd6 {[%emt 0:00:10]} 9. Qe1 {[%emt 0:01:11]} O-O {[%emt 0:00:31]} 10. a3 {[%emt 0:01:03]} Rc8 {[%emt 0:00:25]} 11. Nh4 {[%emt 0:03:46]} Ne4 {[%emt 0:01:45]} 12. f4 {[%emt 0:00:41]} f5 {[%emt 0:00:52]} 13. Nhf3 {[%emt 0:02:06]} Qb6 {[%emt 0:01:49]} 14. Ne5 {[%emt 0:01:11]} Bxe5 {[%emt 0:01:13]} 15. fxe5 {[%emt 0:00:31]} Nxd4 {[%emt 0:04:04]} 16. Nxe4 {[%emt 0:04:17]} dxe4 {[%emt 0:01:10]} 17. exd4 {[%emt 0:06:41]} Qxd4+ {[%emt 0:02:08]} 18. Qe3 {[%emt 0:00:04]} Qxe3+ {[%emt 0:00:29]} 19. Bxe3 {[%emt 0:00:26]} exd3 {[%emt 0:00:24]} 20. Rf2 {[%emt 0:02:12]} a6 {[%emt 0:00:28]} 21. Rd2 {[%emt 0:00:38]} Be2 {[%emt 0:01:04]} 22. Bd4 {[%emt 0:00:26]} f4 {[%emt 0:01:28]} 23. Bc3 {[%emt 0:06:47]} g5 {[%emt 0:00:23]} 24. Kf2 {[%emt 0:00:26]} g4 {[%emt 0:00:38]} 25. g3 {[%emt 0:01:19]} fxg3+ {[%emt 0:01:36]} 26. Kxg3 {[%emt 0:00:21]} Rf3+ {[%emt 0:01:03]} 27. Kg2 {[%emt 0:01:20]} Rcf8 {[%emt 0:00:58]} 28. Bd4 {[%emt 0:00:30]} h5 {[%emt 0:02:40]} 29. Re1 {[%emt 0:00:49]} h4 {[%emt 0:01:58]} 30. Rdxe2 {[%emt 0:01:18]} h3+ {[%emt 0:01:18]} 31. Kh1 {[%emt 0:02:20]} Rf1+ {[%emt 0:01:03]} 32. Bg1 {[%emt 0:01:12]} dxe2 {[%emt 0:00:16]} 33. Rxe2 {[%emt 0:00:48]} R8f4 {[%emt 0:00:31]} 0-1

[Event "Asian Amateur-ch Open 2022"]
[Site "Muscat"]
[Date "2022.10.02"]
[Round "4.29"]
[White "Atharv Bansal"]
[Black "Khayat, Emad"]
[Result "1-0"]
[ECO "C56"]
[WhiteElo "1164"]
[BlackElo "1597"]
[Annotator "NA RC COMBH"]
[PlyCount "102"]
[EventDate "2022.09.29"]
[EventType "swiss"]
[SourceTitle "playchess.com"]
[Source "ChessBase"]
[SourceQuality "1"]
[TimeControl "5400+30"]

1. e4 {[%emt 0:00:06]} e5 {[%emt 0:00:08]} 2. Nf3 {[%emt 0:00:07]} Nc6 {[%emt 0:00:07]} 3. Bc4 {[%emt 0:00:59]} Bc5 {[%emt 0:00:13]} 4. c3 {[%emt 0:01:23]} d6 {[%emt 0:00:06]} 5. d4 {[%emt 0:00:56]} exd4 {[%emt 0:01:00]} 6. cxd4 {[%emt 0:00:09]} Bb6 {[%emt 0:00:05]} 7. h3 {[%emt 0:03:03]} Nf6 {[%emt 0:00:17]} 8. Nc3 {[%emt 0:00:17]} O-O {[%emt 0:01:28]} 9. O-O {[%emt 0:01:40]} Nxe4 {[%emt 0:04:03]} 10. Bxf7+ {[%emt 0:02:09]} Rxf7 {[%emt 0:00:07]} 11. Nxe4 {[%emt 0:00:06]} d5 {[%emt 0:03:46]} 12. Neg5 {[%emt 0:02:30]} Rf8 {[%emt 0:05:40]} 13. Re1 {[%emt 0:15:01]} Qf6 {[%emt 0:06:49]} 14. Qb3 {[%emt 0:04:03]} Qd6 {[%emt 0:17:25]} 15. Ne4 {[%emt 0:04:14]} Qd7 {[%emt 0:13:16]} 16. Nc5 {[%emt 0:03:20]} Qf7 {[%emt 0:05:16]} 17. Be3 {[%emt 0:01:55]} h6 {[%emt 0:01:10]} 18. Nd3 {[%emt 0:01:18]} Na5 {[%emt 0:05:14]} 19. Qc3 {[%emt 0:01:48]} Nc4 {[%emt 0:02:35]} 20. Nde5 {[%emt 0:03:24]} Nxe5 {[%emt 0:00:06]} 21. Nxe5 {[%emt 0:00:11]} Qf6 {[%emt 0:02:07]} 22. Qd3 {[%emt 0:05:56]} Bf5 {[%emt 0:02:10]} 23. Qe2 {[%emt 0:00:17]} Rae8 {[%emt 0:01:49]} 24. Qf3 {[%emt 0:00:48]} Qe6 {[%emt 0:03:14]} 25. Qg3 {[%emt 0:01:11]} Ba5 {[%emt 0:00:58]} 26. Re2 {[%emt 0:02:51]} c6 {[%emt 0:00:11]} 27. a3 {[%emt 0:44:18]} Bc7 {[%emt 0:02:09]} 28. Bd2 {[%emt 0:00:00]} Bb6 {[%emt 0:08:09]} 29. Bb4 {[%emt 0:00:00]} Bxd4 {[%emt 0:04:50]} 30. Rae1 {[%emt 0:00:00]} Be4 {[%emt 0:04:10]} 31. Bxf8 {[%emt 0:00:00]} Bxe5 {[%emt 0:00:52]} 32. Qb3 {[%emt 0:00:00]} Kxf8 {[%emt 0:00:59]} 33. f3 {[%emt 0:00:00]} Bd4+ {[%emt 0:04:56]} 34. Kh1 {[%emt 0:00:00]} Bb6 {[%emt 0:01:16]} 35. fxe4 {[%emt 0:00:00]} d4 {[%emt 0:00:10]} 36. Qf3+ {[%emt 0:00:00]} Kg8 {[%emt 0:00:08]} 37. Qf5 {[%emt 0:00:00]} c5 {[%emt 0:00:24]} 38. Qd5 {[%emt 0:00:00]} Re7 {[%emt 0:01:19]} 39. b3 {[%emt 0:00:00]} Ba5 {[%emt 0:00:15]} 40. b4 {[%emt 0:00:00]} Qxd5 {[%emt 0:00:13]} 41. exd5 {[%emt 0:00:00]} Rxe2 {[%emt 0:00:04]} 42. Rxe2 {[%emt 0:00:00]} cxb4 {[%emt 0:01:38]} 43. axb4 {[%emt 0:00:00]} Bxb4 {[%emt 0:00:09]} 44. Re4 {[%emt 0:00:00]} Bc3 {[%emt 0:00:55]} 45. d6 {[%emt 0:00:00]} d3 {[%emt 0:00:11]} 46. d7 {[%emt 0:00:00]} Bf6 {[%emt 0:00:49]} 47. Re8+ {[%emt 0:00:00]} Kf7 {[%emt 0:00:09]} 48. d8=Q {[%emt 0:00:00]} Bxd8 {[%emt 0:00:09]} 49. Rxd8 {[%emt 0:00:00]} Ke6 {[%emt 0:00:33]} 50. Rxd3 {[%emt 0:00:00]} b5 {[%emt 0:00:09]} 51. Ra3 {[%emt 0:00:00]} Ke5 {[%emt 0:02:04]} 1-0

[Event "Asian Amateur-ch Open 2022"]
[Site "Muscat"]
[Date "2022.10.02"]
[Round "4.32"]
[White "Alharthi, Ahmed Mohammed A"]
[Black "Sinan Shafeek"]
[Result "1-0"]
[ECO "D02"]
[WhiteElo "1950"]
[BlackElo "1099"]
[Annotator "TA"]
[PlyCount "55"]
[EventDate "2022.09.29"]
[EventType "swiss"]
[SourceTitle "playchess.com"]
[Source "ChessBase"]
[SourceQuality "1"]
[TimeControl "5400+30"]

{[%evp 10,55,-7,0,19,10,33,29,111,112,101,109,100,106,137,133,136,129,131,137,177,161,154,165,189,195,348,352,480,206,216,185,244,180,195,190,142,167,177,171,144,111,770,563,1332,1303,29995,93]} 1. d4 {[%emt 0:00:02]} Nf6 {[%emt 0:00:23]} 2. Bf4 {[%emt 0:00:20]} e6 {[%emt 0:01:37]} 3. e3 {[%emt 0:00:28]} d5 {[%emt 0:00:26]} 4. Nd2 {[%emt 0:00:20]} Bd6 {[%emt 0:00:39]} 5. Bg3 {[%emt 0:00:23]} O-O {[%emt 0:01:17]} 6. Ngf3 {[%emt 0:00:52]} Re8 {[%emt 0:03:07] D02: 1 d4 d5 2 Nf3 sidelines, including 2...Nf6 3 g3 and 2...Nf6 3 Bf4.} 7. Bd3 {[%emt 0:01:28]} Nbd7 {[%emt 0:05:44]} 8. Ne5 {[%emt 0:01:43]} c5 {[%emt 0:03:58] [#]} (8... g6 $11) 9. Nxf7 $1 $16 {[%emt 0:04:36][%mdl 512] White has more active pieces. The black rooks are badly placed.} Kxf7 {[%emt 0:00:21]} 10. Bxd6 {[%emt 0:00:34]} cxd4 {[%emt 0:01:52]} 11. exd4 {[%emt 0:04:49] [#]} e5 $146 {[%emt 0:00:20]} ({Predecessor:} 11... Qb6 12. Be5 Qxb2 13. Rb1 Qxa2 14. O-O Qa5 15. f4 Qd8 16. g4 g6 17. Qf3 a6 {1-0 (30) Wetjen,F (1786)-Stalz,M (1720) Playchess.com INT 2020}) 12. O-O $1 {[%emt 0:01:53]} (12. Qf3 e4 13. Nxe4 (13. Bxe4 Qb6 $17) 13... Kg8 $17) 12... e4 {[%emt 0:02:37] [#]} 13. Be2 {[%emt 0:00:50]} Qb6 {[%emt 0:00:40][%csl LRb2,LRd4,LRd6]} 14. Ba3 {[%emt 0:00:29] This bishop pair is nice.} ({Inferior is} 14. Bh5+ g6 15. Bc5 Nxc5 16. dxc5 Qxb2 $15) 14... Qxd4 {[%emt 0:00:30] [#]} 15. Nc4 $1 {[%emt 0:01:38][%mdl 512]} Qxd1 {[%emt 0:03:48]} 16. Nd6+ {[%emt 0:00:44]} Kg6 {[%emt 0:01:46]} 17. Raxd1 {[%emt 0:01:44][%cal Ba1d1,Bd1d4,Bd4g4][%mdl 32]} Re6 {[%emt 0:01:15]} (17... Rd8 {is a better defense.} 18. f3 h6) 18. f4 $18 {[%emt 0:03:40]} exf3 {[%emt 0:00:24]} 19. Bxf3 {[%emt 0:00:16]} (19. Bd3+ $142 Kh5 20. Rxf3) 19... Nb6 {[%emt 0:00:20]} 20. Rd4 {[%emt 0:01:50]} Rb8 {[%emt 0:01:55]} (20... h5 $142 21. b3 Re5) 21. Nxc8 {[%emt 0:02:17]} Rxc8 {[%emt 0:00:24]} 22. Bg4 {[%emt 0:01:35]} Nxg4 {[%emt 0:01:08]} 23. Rxg4+ {[%emt 0:00:09]} Kh6 {[%emt 0:00:59]} 24. Bf8 {[%emt 0:16:52]} Rc7 {[%emt 0:02:48]} 25. Rf3 {[%emt 0:02:35][%cal Rf3h3]} Re5 $2 {[%emt 0:01:00][%mdl 8192]} (25... Re1+ $2 26. Kf2 Kh5 27. h3 $18 (27. Kxe1 Kxg4 28. Kd1 Kg5 $16) (27. Rxg7 Rxg7 28. Bxg7 Rc1 $18)) (25... Kh5 $16 26. Rxg7 Rxg7 27. Bxg7 Re2) 26. Bd6 {[%emt 0:00:53]} Rce7 {[%emt 0:01:03]} 27. Bxe7 {[%emt 0:51:00] White threatens Rh3+ and mate.} Kh5 {[%emt 0:00:56]} 28. Bf8 $2 {Weighted Error Value: White=0.39/Black=0.73} (28. Rxg7 {mates} Kh6 29. Rg8 Re1+ 30. Kf2 Rf1+ 31. Kxf1 Kh5 32. Rh3#) 1-0

[Event "Asian Amateur-ch Open 2022"]
[Site "Muscat"]
[Date "2022.10.02"]
[Round "4.33"]
[White "Al Rahbi, Ahmed Badar"]
[Black "Salim Issa, Ali Shamas"]
[Result "0-1"]
[ECO "E34"]
[WhiteElo "1321"]
[BlackElo "1886"]
[Annotator "NA RC COMBH"]
[PlyCount "82"]
[EventDate "2022.09.29"]
[EventType "swiss"]
[SourceTitle "playchess.com"]
[Source "ChessBase"]
[SourceQuality "1"]
[TimeControl "5400+30"]

1. d4 {[%emt 0:02:16]} Nf6 {[%emt 0:01:24]} 2. c4 {[%emt 0:00:04]} e6 {[%emt 0:00:26]} 3. Nc3 {[%emt 0:00:11]} Bb4 {[%emt 0:00:09]} 4. Qc2 {[%emt 0:00:08]} d5 {[%emt 0:00:44]} 5. Qa4+ {[%emt 0:04:54]} Nc6 {[%emt 0:00:53]} 6. e3 {[%emt 0:00:22]} Ne4 {[%emt 0:01:20]} 7. Qc2 {[%emt 0:00:41]} O-O {[%emt 0:00:55]} 8. a3 {[%emt 0:00:57]} Bxc3+ {[%emt 0:00:33]} 9. bxc3 {[%emt 0:00:13]} f5 {[%emt 0:00:10]} 10. Nf3 {[%emt 0:01:56]} Na5 {[%emt 0:03:05]} 11. cxd5 {[%emt 0:01:16]} exd5 {[%emt 0:00:11]} 12. c4 {[%emt 0:01:07]} c6 {[%emt 0:00:02]} 13. cxd5 {[%emt 0:06:13]} cxd5 {[%emt 0:04:29]} 14. Bd3 {[%emt 0:01:42]} Be6 {[%emt 0:00:23]} 15. Bxe4 {[%emt 0:01:28]} dxe4 {[%emt 0:00:54]} 16. Nd2 {[%emt 0:02:43]} Rc8 {[%emt 0:00:59]} 17. Qa4 {[%emt 0:03:08]} a6 {[%emt 0:01:37]} 18. O-O {[%emt 0:01:42]} b5 {[%emt 0:00:06]} 19. Qb4 {[%emt 0:04:13]} Nc6 {[%emt 0:02:20]} 20. Qb2 {[%emt 0:03:20]} Qd5 {[%emt 0:00:48]} 21. Rb1 {[%emt 0:05:20]} Rc7 {[%emt 0:01:07]} 22. Nb3 {[%emt 0:02:06]} Qxb3 {[%emt 0:01:08]} 23. Qxb3 {[%emt 0:00:36]} Bxb3 {[%emt 0:00:02]} 24. Rxb3 {[%emt 0:00:29]} Na5 {[%emt 0:00:12]} 25. Rb1 {[%emt 0:12:54]} Rfc8 {[%emt 0:01:12]} 26. Rd1 {[%emt 0:03:47]} Rc2 {[%emt 0:01:16]} 27. a4 {[%emt 0:07:41]} bxa4 {[%emt 0:00:03]} 28. Ba3 {[%emt 0:03:14]} Nc4 {[%emt 0:00:08]} 29. Ra1 {[%emt 0:02:13]} Nxa3 {[%emt 0:00:30]} 30. Rxa3 {[%emt 0:00:28]} Rc1 {[%emt 0:00:01]} 31. Ra1 {[%emt 0:00:02]} Rxd1+ {[%emt 0:00:48]} 32. Rxd1 {[%emt 0:00:02]} a3 {[%emt 0:00:02]} 33. Ra1 {[%emt 0:01:38]} a2 {[%emt 0:00:06]} 34. g3 {[%emt 0:00:12]} Rc2 {[%emt 0:00:02]} 35. Kg2 {[%emt 0:02:32]} Kf7 {[%emt 0:00:12]} 36. h3 {[%emt 0:00:32]} g5 {[%emt 0:00:38]} 37. h4 {[%emt 0:04:06]} g4 {[%emt 0:00:17]} 38. h5 {[%emt 0:00:59]} h6 {[%emt 0:00:02]} 39. d5 {[%emt 0:00:11]} Ke7 {[%emt 0:00:19]} 40. d6+ {[%emt 0:00:22]} Kd7 {[%emt 0:00:06]} 41. Rb1 {[%emt 0:00:31]} axb1=Q {[%emt 0:01:17]} 0-1

[Event "Asian Amateur-ch Open 2022"]
[Site "Muscat"]
[Date "2022.10.02"]
[Round "5.1"]
[White "Junaid Sohail"]
[Black "Mahmoody, M. Sadegh"]
[Result "1/2-1/2"]
[ECO "E16"]
[WhiteElo "1981"]
[BlackElo "1914"]
[Annotator "TA"]
[PlyCount "70"]
[EventDate "2022.09.29"]
[EventType "swiss"]
[SourceTitle "playchess.com"]
[Source "ChessBase"]
[SourceQuality "1"]
[TimeControl "5400+30"]

{[%evp 21,70,9,20,0,14,-105,0,-50,-39,-75,12,9,87,84,85,0,108,4,26,11,20,32,96,12,14,10,89,78,95,91,154,147,136,137,149,18,164,176,263,253,275,117,108,93,112,0,0,0,0,0,270]} 1. d4 {[%emt 0:00:01] Avrukh,B} Nf6 {[%emt 0:00:14]} 2. c4 {[%emt 0:02:55]} e6 {[%emt 0:00:32]} 3. Nf3 {[%emt 0:00:05]} b6 {[%emt 0:03:13]} 4. g3 {[%emt 0:00:25]} Bb7 {[%emt 0:00:07]} 5. Bg2 {[%emt 0:00:03]} c5 {[%emt 0:03:04]} 6. d5 {[%emt 0:00:01]} exd5 {[%emt 0:02:17]} 7. Nh4 {[%emt 0:00:06]} d6 {[%emt 0:02:03]} 8. cxd5 {[%emt 0:00:13]} g6 {[%emt 0:01:46]} 9. O-O {[%emt 0:03:03]} Bg7 {[%emt 0:00:29]} 10. Nc3 {[%emt 0:00:45]} O-O {[%emt 0:00:14]} 11. e4 {[%emt 0:00:08]} Na6 {[%emt 0:02:02]} 12. f4 {[%emt 0:03:22][%cal Bf2f4,Bf4f5][%mdl 32] E16: Queen's Indian: 4 g3 Bb7 5 Bg2 Bb4+.} Re8 {[%emt 0:01:10][%cal Ob6b5] [#]} 13. Kh1 $146 {[%emt 0:01:46]} (13. f5 $11) ({Predecessor:} 13. Re1 Nc7 14. a4 Rb8 15. Be3 a6 16. Bf2 b5 17. e5 dxe5 18. d6 Ne6 19. fxe5 {½-½ (32) Adianto,U (2615)-Campora,D (2555) Buenos Aires 1997 CBM 060 [Avrukh,B]}) 13... c4 {[%emt 0:02:45]} (13... b5 $1 $17 {[%cal Rb5b4] And now ...b4 would win.} 14. Qc2 Nc7) 14. Be3 {[%emt 0:03:12]} (14. f5 $11) 14... Nb4 $15 {[%emt 0:07:01][%cal Ob4d5] Strongly threatening ...Nbxd5!} 15. Bd4 {[%emt 0:04:24]} Qd7 {[%emt 0:05:10]} (15... Nd3 $17 {[%cal Of6e4] aiming for ...Nxe4!} 16. Qc2 Rc8) 16. f5 $11 {[%emt 0:04:06] Hoping for Bxf6.} g5 {[%emt 0:04:03]} (16... Qd8 $11 {keeps the balance.}) 17. Nf3 $36 {[%emt 0:00:40][%mdl 2048] White is really pushing.} h6 {[%emt 0:00:30]} 18. Nd2 {[%emt 0:12:21]} (18. h4 $16) 18... b5 {[%emt 0:02:20]} (18... Rac8 $11 {remains equal.}) 19. h4 {[%emt 0:00:02]} (19. a4 $16) 19... gxh4 {[%emt 0:02:30]} 20. gxh4 {[%emt 0:00:05] White wants to play a4.} Nd3 {[%emt 0:00:33]} 21. b3 {[%emt 0:05:58]} Rac8 {[%emt 0:05:23]} (21... Nxe4 22. Qg4 Ndf2+ 23. Rxf2 Nxf2+ 24. Bxf2 $18) (21... Ba6 $14) 22. bxc4 {[%emt 0:08:26]} ({White should play} 22. a4 $1 $16) 22... bxc4 {[%emt 0:00:20]} 23. Rf3 {[%emt 0:00:02]} (23. Nxc4 Ba6 24. Qxd3 Bxc4 $15) 23... Ne5 {[%emt 0:01:10]} (23... Nxe4 24. Ndxe4 Bxd4 25. f6 $16) (23... Kh7 $11) 24. Rg3 {[%emt 0:00:27]} Kh7 {[%emt 0:00:47]} 25. Nf3 {[%emt 0:02:04]} Qe7 {[%emt 0:02:18]} (25... Rg8 $142) 26. Nxe5 {[%emt 0:01:10]} dxe5 {[%emt 0:00:03]} 27. Be3 {[%emt 0:00:02]} ({Of course not} 27. Bxa7 $6 Bxd5 28. Bb6 (28. exd5 Qxa7 29. Qe2 Rg8 $11) 28... Bc6 $11) 27... Rg8 {[%emt 0:01:15]} 28. Bf3 {[%emt 0:03:13] White has more active pieces.} (28. Rb1 $16) 28... Bh8 {[%emt 0:02:03]} (28... Nxd5 $1 $11 {and Black has nothing to worry.} 29. exd5 (29. Nxd5 Qxh4+ 30. Kg2 Bh8 $15) 29... Qxh4+ 30. Kg2 e4 31. Nxe4 Be5) 29. Bg5 $18 {[%emt 0:02:29]} hxg5 {[%emt 0:01:28]} (29... Bg7 {was worth a try.} 30. Qg1 Ba6) 30. hxg5 {[%emt 0:00:01]} Nh5 {[%emt 0:00:39] [#]} 31. Bxh5 {[%emt 0:04:18]} (31. g6+ $1 $18 {and the rest is easy.} fxg6 32. Rh3) 31... Rxg5 $16 {[%emt 0:00:08]} 32. Rxg5 {[%emt 0:05:18]} Qxg5 {[%emt 0:00:03] [#]} 33. Bxf7 {[%emt 0:00:52]} ({Better is} 33. Qe2 $1 $16) 33... Qh4+ $11 {[%emt 0:02:16] The position is equal.} 34. Kg2 {[%emt 0:00:32] Really sharp!} Qg5+ {[%emt 0:00:12]} 35. Kh1 {[%emt 0:01:03] Black must now prevent Qe2.} Kh6 $2 {[%emt 0:47:52][%mdl 40960] Weighted Error Value: White=0.51/Black=0.45. An unexpected result.} (35... Qh4+ $11 36. Kg2 Qg5+ 37. Kh1 (37. Kf1 Qf4+ 38. Kg2 Qg5+ $11)) 1/2-1/2

[Event "Asian Amateur-ch Open 2022"]
[Site "Muscat"]
[Date "2022.10.02"]
[Round "5.2"]
[White "Shreyas Seshadri Nallore"]
[Black "Fooladi, Behrooz"]
[Result "0-1"]
[ECO "A05"]
[WhiteElo "1791"]
[BlackElo "1928"]
[Annotator "TA"]
[PlyCount "74"]
[EventDate "2022.09.29"]
[EventType "swiss"]
[SourceTitle "playchess.com"]
[Source "ChessBase"]
[SourceQuality "1"]
[TimeControl "5400+30"]

{[%evp 9,73,9,5,0,2,-8,0,-22,-5,-4,0,0,0,0,0,0,0,0,0,0,0,-36,-5,0,-14,-27,-36,-86,-94,-104,-39,-85,-88,-91,-58,-92,-89,-136,-121,-144,-101,-100,-89,-108,-98,-118,-112,-116,-100,-102,-106,-123,-123,-201,-196,-229,-217,-12837,-12838,-29970,-12840,-29997,-29998,-29998,-29999,-29999]} 1. Nf3 {[%emt 0:00:06]} c5 {[%emt 0:00:24]} 2. b3 {[%emt 0:00:11]} Nc6 {[%emt 0:00:11]} 3. Bb2 {[%emt 0:00:15]} Nf6 {[%emt 0:00:10]} 4. e3 {[%emt 0:00:20]} g6 {[%emt 0:00:03]} 5. d4 {[%emt 0:00:27]} cxd4 {[%emt 0:01:33]} 6. exd4 {[%emt 0:00:28] A05: Réti Opening: 1 Nf3 Nf6.} d5 {[%emt 0:00:05]} 7. Bd3 {[%emt 0:02:35]} (7. Ne5 {feels hotter.} Bg7 8. Bb5 Bd7 9. O-O) 7... Bg7 {[%emt 0:00:04]} 8. Nbd2 {[%emt 0:01:12] The position is equal.} O-O {[%emt 0:00:07]} 9. O-O {[%emt 0:07:12]} Nb4 {[%emt 0:02:43]} 10. Be2 {[%emt 0:03:59]} Bf5 {[%emt 0:00:26]} 11. c3 {[%emt 0:02:57]} Nd3 {[%emt 0:00:22]} 12. Bxd3 {[%emt 0:02:22]} Bxd3 {[%emt 0:00:04]} 13. Re1 {[%emt 0:00:21]} Rc8 {[%emt 0:01:55]} 14. Ne5 {[%emt 0:07:59]} Ba6 {[%emt 0:01:20] [#]} 15. c4 $146 {[%emt 0:04:45]} ({Predecessor:} 15. Rc1 e6 16. Nf1 Re8 17. Rc2 Nd7 18. Nd3 e5 19. Nxe5 Nxe5 20. dxe5 Rxe5 21. Rxe5 Bxe5 {1-0 (42) Valle,L (2284)-Pressman,L (2307) Chess.com INT 2021}) 15... Nd7 {[%emt 0:06:13]} 16. Nxd7 {[%emt 0:14:04]} Qxd7 {[%emt 0:05:04]} 17. cxd5 {[%emt 0:02:27]} Rfe8 {[%emt 0:00:18]} 18. Ne4 {[%emt 0:09:29]} (18. Rc1 $15) 18... Qxd5 $17 {[%emt 0:00:37]} 19. Qf3 {[%emt 0:00:43][%cal Oe4f6]} Qf5 {[%emt 0:02:09] Against Nf6+} (19... Red8 $17 20. Rec1 Rxc1+ 21. Rxc1 Bxd4 22. Bxd4 Qxd4) 20. Qe3 {[%emt 0:06:59]} (20. Qxf5 $15 gxf5 21. Ng3) 20... b6 {[%emt 1:16:42] Black is more active.} 21. Rac1 {[%emt 0:02:32] Inhibits Rc2.} Qd7 {[%emt 0:00:00]} 22. Bc3 {[%emt 0:03:09]} Bb7 {[%emt 0:00:00] A strong pair of Bishops.} 23. Kh1 {[%emt 0:05:47]} (23. Red1 $142) 23... Red8 {[%emt 0:00:00][%cal Rg7d4]} ({Inferior is} 23... Qg4 24. d5 $17) 24. Red1 {[%emt 0:06:54]} Bxe4 {[%emt 0:00:00]} ({Worse is} 24... Qg4 25. f3 Qe6 26. Qf4 $17) 25. Qxe4 {[%emt 0:00:41]} e6 {[%emt 0:00:00][%cal Be7e6,Be6d5,Bd5d4][%mdl 32]} 26. Qe1 {[%emt 0:01:41]} Rc6 {[%emt 0:00:00]} 27. d5 {[%emt 0:04:10]} exd5 {[%emt 0:00:00]} 28. Bxg7 {[%emt 0:00:17] [#] Hoping for Rxc6.} Kxg7 {[%emt 0:00:00]} 29. Rxc6 {[%emt 0:01:50]} Qxc6 {[%emt 0:00:00][%mdl 4096] Endgame KQR-KQR} 30. Qe5+ {[%emt 0:00:18]} Qf6 {[%emt 0:00:00]} 31. Qc7 {[%emt 0:00:18] [#]} (31. Qe2 $17 {was called for.}) 31... d4 $1 $19 {[%emt 0:00:00]} 32. f3 {[%emt 0:01:50]} d3 {[%emt 0:00:00] aiming for ...Re8.} 33. Qxa7 $2 {[%emt 0:00:49]} (33. Kg1) 33... d2 {[%emt 0:00:00][%cal Of6a1]} 34. h3 {[%emt 0:04:10]} Re8 {[%emt 0:00:00] ( -> ...Re1+)} 35. Rxd2 {[%emt 0:00:54]} Re1+ {[%emt 0:00:00] Black mates.} 36. Kh2 {[%emt 0:00:01]} Qf4+ {[%emt 0:00:00]} 37. g3 {[%emt 0:00:00]} Qxd2# {[%emt 0:00:00] Weighted Error Value: White=0.77/Black=0.08 (flawless)} 0-1